fUST/lending_fUST_20250301
["ID","MTS","AMOUNT","RATE_DAILY","PERIOD"]
[354904607,1740809351472,-500.0,0.00036593,2]
[354904608,1740809351495,-300.0,0.00036593,15]
[354904609,1740809351518,-500.0,0.00036593,2]
[354904610,1740809351541,-500.0,0.00036593,2]
[354904611,1740809351567,-500.0,0.00036593,2]
[354904612,1740809351591,-500.0,0.00036593,2]
[354904613,1740809351614,-500.0,0.00036593,2]
[354904614,1740809351636,-500.0,0.00036593,2]
[354904615,1740809351659,-500.0,0.00036593,2]
[354904616,1740809351681,-172.92723679,0.00036593,2]
[354904617,1740809351714,-500.0,0.00036593,2]
[354904618,1740809351738,-500.0,0.00036593,2]
[354904619,1740809351761,-500.0,0.00036593,2]
[354904620,1740809351784,-500.0,0.00036593,2]
[354904621,1740809351807,-500.0,0.00036593,2]
[354904622,1740809351830,-500.0,0.00036593,2]
[354904623,1740809351852,-500.0,0.00036593,2]
[354904624,1740809351880,-500.0,0.00036593,2]
[354904625,1740809351906,-500.0,0.00036593,2]
[354904626,1740809351932,-500.0,0.00036593,2]
[354904627,1740809351962,-500.0,0.00036593,2]
[354904628,1740809351990,-500.0,0.00036593,2]
[354904629,1740809352016,-363.79438126,0.00036593,15]
[354904630,1740809352045,-500.0,0.00036593,2]
[354904631,1740809352070,-500.0,0.00036593,2]
[354904632,1740809352096,-500.0,0.00036593,2]
[354904633,1740809352124,-500.0,0.00036593,2]
[354904634,1740809352159,-500.0,0.00036593,2]
[354904635,1740809352190,-500.0,0.00036593,2]
[354904636,1740809352215,-274.5435175,0.00036593,2]
[354904637,1740809352241,-500.0,0.00036593,2]
[354904638,1740809352273,-500.0,0.00036593,2]
[354904639,1740809352299,-500.0,0.00036593,2]
[354904640,1740809352325,-500.0,0.00036593,2]
[354904641,1740809352356,-500.0,0.00036593,2]
[354904642,1740809352382,-500.0,0.00036593,2]
[354904643,1740809352404,-500.0,0.00036593,2]
[354904644,1740809352426,-500.0,0.00036593,2]
[354904645,1740809352453,-500.0,0.00036593,2]
[354904646,1740809352476,-500.0,0.00036593,2]
[354904647,1740809352497,-500.0,0.00036593,2]
[354904648,1740809352518,-500.0,0.00036593,2]
[354904649,1740809352542,-500.0,0.00036593,2]
[354904650,1740809352564,-500.0,0.00036593,2]
[354904651,1740809352585,-500.0,0.00036593,2]
[354904652,1740809352606,-611.51350501,0.00036594,2]
[354904653,1740809352627,-24900.0,0.00036597,2]
[354904654,1740809352647,-500.0,0.00036812,2]
[354904655,1740809352668,-718.88,0.00036812,2]
[354904656,1740809352688,-521.8234435,0.00036812,2]
[354904657,1740809352710,-343.22137378,0.00036831,7]
[354904658,1740809352730,-548.0,0.0003699,3]
[354904659,1740809352751,-274.0,0.0003699,3]
[354904660,1740809352771,-822.0,0.0003699,3]
[354904661,1740809352790,-294.29,0.0003699,3]
[354904662,1740809352810,-882.87,0.0003699,3]
[354904663,1740809352831,-69454.32696341,0.00037,120]
[354904664,1740809364102,-30545.67303659,0.00037,120]
[354904665,1740809364125,-465.22,0.00037,7]
[354904666,1740809364147,-500.0,0.000373,2]
[354904667,1740809364170,-500.0,0.000373,5]
[354904668,1740809364193,-500.0,0.000373,5]
[354904669,1740809364214,-277.00956911,0.000373,5]
[354904670,1740809364237,-500.0,0.000373,5]
[354904671,1740809364259,-543.89531724,0.000374,5]
[354904672,1740809364282,-545.9498924,0.000374,5]
[354904673,1740809364303,-500.0,0.000374,5]
[354904674,1740809364324,-161.47568563,0.000374,5]
[354904675,1740809364346,-500.0,0.000374,5]
[354904676,1740809364369,-2064.83082422,0.00037437,105]
[354904677,1740809364393,-343.22137378,0.00037452,7]
[354904678,1740809364416,-500.0,0.000376,2]
[354904679,1740809364438,-500.0,0.00037799,15]
[354904680,1740809364460,-209.45499494,0.00037799,15]
[354904681,1740809364482,-500.0,0.00037799,15]
[354904682,1740809364506,-512.04910658,0.00037799,15]
[354904683,1740809364527,-500.0,0.00037799,15]
[354904684,1740809364549,-312.22642556,0.00037799,15]
[354904685,1740809364570,-137998.46246923,0.000378,2]
[354904686,1740809370128,-165.26271805,0.00036493,2]
[354904687,1740809429942,500.0,0.0003491,5]
[354904736,1740809433160,-5000.0,0.00037,120]
[354904737,1740809433171,-165.26271805,0.00037213,2]
[354904738,1740809433182,-500.0,0.000374,5]
[354904739,1740809433192,-287.59238743,0.000374,5]
[354904740,1740809433207,-500.0,0.000374,5]
[354904741,1740809433217,-500.0,0.000374,5]
[354904742,1740809433227,-500.0,0.000374,5]
[354904743,1740809433239,-500.0,0.000374,3]
[354904744,1740809433249,-274.0,0.0003779,3]
[354904745,1740809433259,-19359.36822069,0.00037799,120]
[354904746,1740809433271,-13918.07945278,0.000378,2]
[354904787,1740809438267,-917.51556928,0.000378,2]
[354904818,1740809438562,-1069.29236612,0.000378,2]
[354904821,1740809438579,-126798.47886892,0.000378,2]
[354904823,1740809438589,-5800.6,0.000378,30]
[354904825,1740809438599,-1276.22,0.000378,30]
[354904827,1740809438608,-116134.75,0.000378,30]
[354904829,1740809438618,-418.7,0.000378,7]
[354904831,1740809438628,-151.16438826,0.000378,5]
[354904833,1740809438637,-500.0,0.000378,5]
[354904835,1740809438646,-500.0,0.000378,5]
[354904837,1740809438657,-500.0,0.000378,5]
[354904839,1740809438667,-500.0,0.000378,5]
[354904841,1740809438676,-500.0,0.000378,5]
[354904843,1740809438685,-161.32455718,0.000378,5]
[354904845,1740809438695,-506.35827061,0.000378,5]
[354904846,1740809438704,-307.98628014,0.000378,5]
[354904847,1740809438714,-503.70867336,0.000378,5]
[354904849,1740809438723,-500.0,0.000378,5]
[354904851,1740809438732,-500.0,0.000378,5]
[354904853,1740809438742,-205.93282442,0.000379,8]
[354904855,1740809438751,-165.26271805,0.00037933,2]
[354904856,1740809438761,-191.8775866,0.00037984,2]
[354904857,1740809438770,-191.87758658,0.00038187,2]
[354904859,1740809438780,-2064.83082422,0.0003838,110]
[354904861,1740809438789,-191.87758658,0.0003839,2]
[354904863,1740809438798,-250.0,0.000385,30]
[354904864,1740809438808,-191.87758658,0.00038592,2]
[354904865,1740809438818,-151.0,0.000386,19]
[354904866,1740809438827,-165.26271805,0.00038654,2]
[354904867,1740809438837,-500.0,0.00038699,15]
[354904868,1740809438846,-500.0,0.00038699,15]
[354904869,1740809438856,-418.55849789,0.00038699,15]
[354904870,1740809438865,-208.43437461,0.00038699,15]
[354904871,1740809438875,-15287.48758101,0.000387,120]
[354904872,1740809438886,-658.3865056,0.00038709,4]
[354904873,1740809438895,-205.93282426,0.00038795,8]
[354904874,1740809438905,-500.0,0.00038795,2]
[354904875,1740809438916,-191.87758658,0.00038795,2]
[354904876,1740809438926,-500.0,0.00038799,2]
[354904877,1740809438935,-718.88,0.00038799,2]
[354904878,1740809438945,-116134.75,0.000388,30]
[354904879,1740809438955,-151.0,0.000388,17]
[354904880,1740809438964,-500.0,0.00038873,5]
[354904881,1740809438974,-500.0,0.00038873,5]
[354904882,1740809438984,-500.0,0.00038887,2]
[354904883,1740809438994,-4207.51,0.00038887,2]
[354904884,1740809439004,-1666.36,0.00038887,5]
[354904886,1740809439014,-500.0,0.00038887,2]
[354904888,1740809439023,-1511.63,0.00038887,2]
[354904890,1740809439033,-1449.42,0.00038887,2]
[354904891,1740809439043,-500.0,0.00038887,2]
[354904892,1740809439053,-528.74505089,0.00038887,2]
[354904893,1740809439063,-600.22767263,0.00038887,2]
[354904894,1740809439072,-500.0,0.00038887,2]
[354904895,1740809439083,-500.0,0.00038887,2]
[354904896,1740809439092,-5000.0,0.00038888,120]
[354904897,1740809439102,-5000.0,0.00038888,120]
[354904898,1740809439112,-5000.0,0.00038889,120]
[354904899,1740809439122,-499999.9323134,0.0003889,30]
[354904900,1740809439132,-157.251157,0.0003889,14]
[354904901,1740809439141,-157.251157,0.0003889,14]
[354904902,1740809439151,-154.865842,0.0003889,14]
[354904903,1740809439163,-231.467165,0.0003889,14]
[354904904,1740809439172,-231.467165,0.0003889,14]
[354904905,1740809439181,-2500.008198,0.0003889,14]
[354904906,1740809439191,-2500.008198,0.0003889,14]
[354904907,1740809439206,-158.079616,0.0003889,14]
[354904908,1740809439216,-340.317342,0.0003889,14]
[354904909,1740809439225,-203.412894,0.0003889,14]
[354904910,1740809439235,-340.317342,0.0003889,14]
[354904911,1740809439245,-203.412894,0.0003889,14]
[354904912,1740809439255,-5000.0,0.00038895,120]
[354904913,1740809439264,-5999.97,0.00038895,120]
[354904914,1740809439274,-500.0,0.00038896,2]
[354904915,1740809439283,-405.92986803,0.00038896,2]
[354904916,1740809439293,-500.0,0.00038896,2]
[354904917,1740809439303,-500.0,0.00038896,2]
[354904918,1740809439313,-500.0,0.00038896,2]
[354904919,1740809439323,-500.0,0.00038896,2]
[354904920,1740809439337,-575.05244896,0.00038896,2]
[354904921,1740809439347,-500.0,0.00038896,2]
[354904922,1740809439357,-500.0,0.00038896,2]
[354904923,1740809439368,-500.0,0.00038896,2]
[354904924,1740809439378,-500.0,0.00038896,2]
[354904925,1740809439388,-725.09,0.00038896,2]
[354904926,1740809439398,-500.0,0.00038896,2]
[354904927,1740809439410,-500.0,0.00038896,2]
[354904928,1740809439420,-500.0,0.00038896,2]
[354904929,1740809439430,-500.0,0.00038896,2]
[354904930,1740809439440,-500.0,0.00038896,2]
[354904931,1740809439450,-500.0,0.00038896,2]
[354904932,1740809439461,-500.0,0.00038896,2]
[354904933,1740809439471,-500.0,0.00038896,2]
[354904934,1740809439481,-500.0,0.00038896,2]
[354904935,1740809439491,-500.0,0.00038896,2]
[354904936,1740809439501,-612.55,0.00038896,2]
[354904937,1740809439511,-500.0,0.00038896,2]
[354904938,1740809439522,-1569.69,0.00038896,2]
[354904939,1740809439532,-500.0,0.00038896,2]
[354904940,1740809439542,-500.0,0.00038896,2]
[354904941,1740809439553,-500.0,0.00038896,2]
[354904942,1740809439563,-515.97,0.00038896,2]
[354904943,1740809439573,-500.0,0.00038896,2]
[354904944,1740809439584,-504.62846197,0.00038896,2]
[354904945,1740809439594,-500.0,0.00038896,2]
[354904946,1740809439603,-500.0,0.00038896,2]
[354904947,1740809439614,-703.53,0.00038896,2]
[354904948,1740809439624,-500.0,0.00038896,2]
[354904949,1740809439634,-500.0,0.00038896,2]
[354904950,1740809439644,-1071.91,0.00038896,2]
[354904951,1740809439654,-500.0,0.00038896,2]
[354904952,1740809439666,-500.0,0.00038896,2]
[354904953,1740809439676,-500.0,0.00038896,2]
[354904954,1740809439686,-500.0,0.00038896,2]
[354904955,1740809439695,-500.0,0.00038896,2]
[354904956,1740809439705,-848.19,0.00038896,2]
[354904957,1740809439715,-500.0,0.00038896,2]
[354904958,1740809439724,-500.0,0.00038896,2]
[354904959,1740809439734,-500.0,0.00038896,2]
[354904960,1740809439745,-500.0,0.00038896,2]
[354904961,1740809439754,-500.0,0.00038896,2]
[354904962,1740809439764,-500.0,0.00038896,2]
[354904963,1740809439774,-500.0,0.00038896,2]
[354904964,1740809439784,-500.0,0.00038896,2]
[354904965,1740809439794,-582.55,0.00038896,2]
[354904966,1740809439804,-503.79005352,0.00038896,2]
[354904967,1740809439814,-575.97,0.00038896,2]
[354904968,1740809439824,-500.0,0.00038896,2]
[354904969,1740809439834,-857.98,0.00038896,2]
[354904970,1740809439844,-647.63,0.00038896,2]
[354904971,1740809439853,-500.0,0.00038896,2]
[354904972,1740809439863,-500.0,0.00038896,2]
[354904973,1740809439873,-2179.6,0.00038896,2]
[354904975,1740809439884,-500.0,0.00038896,2]
[354904976,1740809439894,-500.0,0.00038896,2]
[354904977,1740809439904,-500.0,0.00038896,2]
[354904978,1740809439915,-500.0,0.00038896,2]
[354904979,1740809439925,-500.0,0.00038896,2]
[354904980,1740809439935,-500.0,0.00038896,2]
[354904981,1740809439945,-500.0,0.00038896,2]
[354904982,1740809439955,-500.0,0.00038896,2]
[354904983,1740809439966,-512.28126613,0.00038896,2]
[354904984,1740809439976,-500.0,0.00038896,2]
[354904985,1740809439986,-500.0,0.00038896,2]
[354904986,1740809439996,-618.06,0.00038896,2]
[354904987,1740809440006,-500.0,0.00038896,2]
[354904988,1740809440016,-504.02431175,0.00038896,2]
[354904989,1740809440026,-500.0,0.00038896,2]
[354904990,1740809440036,-500.0,0.00038896,2]
[354904991,1740809440046,-526.63,0.00038896,2]
[354904992,1740809440056,-500.0,0.00038896,2]
[354904993,1740809440066,-500.0,0.00038896,2]
[354904994,1740809440075,-500.0,0.00038896,2]
[354904996,1740809440085,-518.96,0.00038896,2]
[354904997,1740809440095,-500.0,0.00038896,2]
[354904998,1740809440104,-500.0,0.00038896,2]
[354904999,1740809440115,-500.0,0.00038896,2]
[354905000,1740809440125,-500.0,0.00038896,2]
[354905001,1740809440135,-500.0,0.00038896,2]
[354905003,1740809440144,-500.0,0.00038896,2]
[354905005,1740809440154,-1334.68,0.00038896,2]
[354905007,1740809440166,-500.0,0.00038896,2]
[354905009,1740809440176,-504.88748835,0.00038896,2]
[354905012,1740809440187,-598.55,0.00038896,2]
[354905014,1740809440198,-500.0,0.00038896,2]
[354905016,1740809440212,-500.0,0.00038896,2]
[354905018,1740809440222,-2696.7,0.00038896,2]
[354905020,1740809440233,-200.0,0.00038896,2]
[354905022,1740809440243,-500.0,0.00038896,2]
[354905024,1740809440253,-500.0,0.00038896,2]
[354905026,1740809440263,-500.0,0.00038896,2]
[354905028,1740809440274,-500.0,0.00038896,2]
[354905030,1740809440285,-500.0,0.00038896,2]
[354905032,1740809440294,-500.0,0.00038896,2]
[354905034,1740809440304,-674.03,0.00038896,2]
[354905036,1740809440314,-565.03,0.00038896,2]
[354905038,1740809440324,-666.43,0.00038896,2]
[354905040,1740809440334,-572.68520995,0.00038896,2]
[354905042,1740809440344,-1641.34,0.00038896,2]
[354905044,1740809440354,-500.0,0.00038896,2]
[354905046,1740809440363,-500.0,0.00038896,2]
[354905048,1740809440373,-927.46,0.00038896,2]
[354905050,1740809440382,-500.0,0.00038896,2]
[354905052,1740809440391,-500.0,0.00038896,2]
[354905054,1740809440401,-1127.75,0.00038896,2]
[354905056,1740809440412,-640.5,0.00038896,2]
[354905058,1740809440422,-500.0,0.00038896,2]
[354905060,1740809440431,-500.0,0.00038896,2]
[354905062,1740809440441,-500.0,0.00038896,2]
[354905064,1740809440451,-646.65,0.00038896,2]
[354905066,1740809440461,-545.17307275,0.00038896,2]
[354905068,1740809440471,-500.0,0.00038896,2]
[354905070,1740809440481,-402.94456754,0.00038896,2]
[354905072,1740809440491,-500.0,0.00038896,2]
[354905074,1740809440501,-523.77745751,0.00038896,2]
[354905076,1740809440511,-500.0,0.00038896,2]
[354905078,1740809440520,-500.0,0.00038896,2]
[354905080,1740809440530,-500.0,0.00038896,2]
[354905082,1740809440540,-500.0,0.00038896,2]
[354905084,1740809440549,-503.73344001,0.00038896,2]
[354905086,1740809440559,-500.0,0.00038896,2]
[354905088,1740809440569,-1010.86,0.00038896,2]
[354905090,1740809440579,-500.0,0.00038896,2]
[354905092,1740809440589,-646.1594426,0.00038896,2]
[354905094,1740809440599,-573.95,0.00038896,2]
[354905096,1740809440610,-500.0,0.00038896,2]
[354905099,1740809440620,-500.0,0.00038896,2]
[354905102,1740809440630,-500.0,0.00038896,2]
[354905105,1740809440640,-515.53,0.00038896,2]
[354905108,1740809440650,-500.0,0.00038896,2]
[354905110,1740809440660,-500.0,0.00038896,2]
[354905120,1740809440749,-500.0,0.00038896,2]
[354905122,1740809440758,-500.0,0.00038896,2]
[354905124,1740809440768,-1812.05,0.00038896,2]
[354905126,1740809440777,-848.22,0.00038896,2]
[354905128,1740809440787,-501.83871337,0.00038896,2]
[354905130,1740809440797,-500.0,0.00038896,2]
[354905132,1740809440807,-500.0,0.00038896,2]
[354905134,1740809440817,-501.96018849,0.00038896,2]
[354905136,1740809440826,-501.94827836,0.00038896,2]
[354905138,1740809440835,-2216.55,0.00038896,2]
[354905140,1740809440846,-500.0,0.00038896,2]
[354905142,1740809440856,-500.0,0.00038896,2]
[354905144,1740809440865,-1000.0,0.00038896,2]
[354905146,1740809440875,-985.99,0.00038896,2]
[354905148,1740809440885,-9642.91,0.00038896,2]
[354905150,1740809440894,-500.0,0.00038896,2]
[354905152,1740809440904,-5260.02,0.00038896,2]
[354905154,1740809440914,-500.0,0.00038896,2]
[354905156,1740809440924,-14331.47,0.00038896,2]
[354905158,1740809440933,-509.14059452,0.00038896,2]
[354905160,1740809440943,-500.0,0.00038896,2]
[354905162,1740809440953,-500.0,0.00038896,2]
[354905163,1740809440963,-500.0,0.00038896,2]
[354905164,1740809440972,-551.36,0.00038896,2]
[354905165,1740809440982,-500.0,0.00038896,2]
[354905166,1740809440992,-1130.27,0.00038896,2]
[354905167,1740809441002,-935.32,0.00038896,2]
[354905168,1740809441012,-500.0,0.00038896,2]
[354905169,1740809441022,-500.0,0.00038896,2]
[354905170,1740809441032,-500.0,0.00038896,2]
[354905171,1740809441042,-11049.03175329,0.00038896,2]
[354905172,1740809441052,-500.0,0.00038896,2]
[354905173,1740809441062,-500.0,0.00038896,2]
[354905174,1740809441073,-415.20473459,0.00038896,2]
[354905175,1740809441083,-500.0,0.00038896,2]
[354905176,1740809441093,-500.0,0.00038896,2]
[354905177,1740809441103,-500.0,0.00038896,2]
[354905178,1740809441113,-4376.85,0.00038896,2]
[354905179,1740809441123,-500.0,0.00038896,2]
[354905180,1740809441133,-693.52,0.00038896,2]
[354905181,1740809441144,-502.95608307,0.00038896,2]
[354905182,1740809441153,-500.0,0.00038896,2]
[354905183,1740809441164,-500.0,0.00038896,2]
[354905184,1740809441173,-650.9,0.00038896,2]
[354905185,1740809441183,-500.0,0.00038896,2]
[354905186,1740809441193,-500.0,0.00038896,2]
[354905187,1740809441206,-500.0,0.00038896,2]
[354905188,1740809441216,-684.5,0.00038896,2]
[354905189,1740809441227,-500.0,0.00038896,2]
[354905190,1740809441239,-500.0,0.00038896,2]
[354905191,1740809441248,-716.87,0.00038896,2]
[354905192,1740809441258,-2781.04,0.00038896,2]
[354905193,1740809441268,-1816.04,0.00038896,2]
[354905194,1740809441281,-725.99,0.00038896,2]
[354905195,1740809441291,-1015.36,0.00038896,2]
[354905196,1740809441300,-500.0,0.00038896,2]
[354905197,1740809441310,-500.0,0.00038896,2]
[354905198,1740809441320,-875.61,0.00038896,2]
[354905199,1740809441330,-500.0,0.00038896,2]
[354905200,1740809441340,-500.0,0.00038896,2]
[354905201,1740809441350,-500.0,0.00038896,2]
[354905202,1740809441359,-500.0,0.00038896,2]
[354905203,1740809441369,-500.0,0.00038896,2]
[354905204,1740809441379,-2425.77,0.00038896,2]
[354905205,1740809441389,-2485.9,0.00038896,2]
[354905206,1740809441399,-1328.03,0.00038896,2]
[354905207,1740809441408,-500.0,0.00038896,2]
[354905208,1740809441418,-4146.17,0.00038896,2]
[354905209,1740809441428,-500.0,0.00038896,2]
[354905210,1740809441438,-4369.94,0.00038896,2]
[354905211,1740809441448,-500.0,0.00038896,2]
[354905212,1740809441457,-2517.81,0.00038896,2]
[354905213,1740809441468,-1886.42,0.00038896,2]
[354905214,1740809441478,-2840.07,0.00038896,2]
[354905215,1740809441487,-500.0,0.00038896,2]
[354905216,1740809441497,-500.0,0.00038896,2]
[354905217,1740809441507,-500.0,0.00038896,2]
[354905218,1740809441518,-2648.43,0.00038896,2]
[354905219,1740809441527,-500.0,0.00038896,2]
[354905220,1740809441537,-500.0,0.00038896,2]
[354905221,1740809441547,-835.16,0.00038896,2]
[354905222,1740809441556,-500.0,0.00038896,2]
[354905223,1740809441566,-500.0,0.00038896,2]
[354905224,1740809441575,-500.0,0.00038896,2]
[354905225,1740809441585,-1688.26,0.00038896,2]
[354905226,1740809441594,-500.0,0.00038896,2]
[354905227,1740809441604,-855.23,0.00038896,2]
[354905228,1740809441614,-500.0,0.00038896,2]
[354905229,1740809441623,-8346.75,0.00038896,2]
[354905230,1740809441633,-1053.46,0.00038896,2]
[354905231,1740809441642,-500.0,0.00038896,2]
[354905232,1740809441651,-505.34708335,0.00038896,2]
[354905233,1740809441662,-546.12,0.00038896,2]
[354905234,1740809441671,-500.0,0.00038896,2]
[354905235,1740809441680,-500.0,0.00038896,2]
[354905236,1740809441690,-1988.4,0.00038896,2]
[354905237,1740809441700,-756.45,0.00038896,2]
[354905238,1740809441709,-500.0,0.00038896,2]
[354905239,1740809441719,-794.18,0.00038896,2]
[354905240,1740809441729,-157.251157,0.00038896,14]
[354905241,1740809441738,-500.0,0.00038896,2]
[354905242,1740809441748,-157.251157,0.00038896,14]
[354905243,1740809441759,-681.8,0.00038896,2]
[354905244,1740809441768,-304.40893929,0.00038896,2]
[354905245,1740809441777,-500.0,0.00038896,2]
[354905246,1740809441787,-1761.14,0.00038896,2]
[354905247,1740809441796,-157.251157,0.00038896,14]
[354905248,1740809441806,-157.251157,0.00038896,14]
[354905249,1740809441816,-500.0,0.00038896,2]
[354905250,1740809441825,-2358.34,0.00038896,2]
[354905251,1740809441835,-500.0,0.00038896,2]
[354905252,1740809441844,-500.0,0.00038896,2]
[354905253,1740809441854,-500.0,0.00038896,2]
[354905254,1740809441863,-500.0,0.00038896,2]
[354905255,1740809441872,-894.74,0.00038896,2]
[354905256,1740809441882,-500.0,0.00038896,2]
[354905257,1740809441892,-503.15627078,0.00038896,2]
[354905258,1740809441902,-500.0,0.00038896,2]
[354905259,1740809441912,-1459.08,0.00038896,2]
[354905260,1740809441921,-14191.06,0.00038896,2]
[354905261,1740809441931,-520.11961642,0.00038896,2]
[354905262,1740809441940,-707.33,0.00038896,2]
[354905263,1740809441950,-609.17,0.00038896,2]
[354905264,1740809441960,-616.31,0.00038896,2]
[354905265,1740809441970,-500.0,0.00038896,2]
[354905266,1740809441980,-500.0,0.00038896,2]
[354905267,1740809441991,-500.0,0.00038896,2]
[354905268,1740809442000,-582.62,0.00038896,2]
[354905269,1740809442010,-500.0,0.00038896,2]
[354905270,1740809442020,-2627.92,0.00038896,2]
[354905271,1740809442029,-500.0,0.00038896,2]
[354905272,1740809442039,-500.0,0.00038896,2]
[354905273,1740809442049,-500.0,0.00038896,2]
[354905274,1740809442058,-500.0,0.00038896,2]
[354905275,1740809442067,-500.0,0.00038896,2]
[354905276,1740809442077,-3334.56,0.00038896,2]
[354905277,1740809442086,-22667.5,0.00038896,120]
[354905278,1740809442096,-181.23774386,0.00038896,2]
[354905279,1740809442105,-617.25,0.00038896,2]
[354905280,1740809442115,-901.29,0.00038896,2]
[354905281,1740809442125,-500.0,0.00038896,2]
[354905282,1740809442135,-540.9947673,0.00038896,2]
[354905283,1740809442145,-500.0,0.00038896,2]
[354905284,1740809442155,-500.0,0.00038896,2]
[354905285,1740809442165,-2822.79,0.00038896,2]
[354905286,1740809442175,-500.0,0.00038896,2]
[354905287,1740809442185,-606.35,0.00038896,2]
[354905288,1740809442194,-12086.4,0.00038896,2]
[354905289,1740809442207,-500.0,0.00038896,2]
[354905290,1740809442217,-500.0,0.00038896,2]
[354905291,1740809442226,-870.0,0.00038896,2]
[354905292,1740809442236,-500.0,0.00038896,2]
[354905293,1740809442246,-500.0,0.00038896,2]
[354905294,1740809442257,-3875.28,0.00038896,2]
[354905295,1740809442267,-544.31,0.00038896,2]
[354905296,1740809442278,-2032.04,0.00038896,2]
[354905297,1740809442287,-612.37,0.00038896,2]
[354905298,1740809442298,-500.0,0.00038896,2]
[354905299,1740809442307,-500.0,0.00038896,2]
[354905300,1740809442317,-3833.67,0.00038896,2]
[354905301,1740809442327,-505.73008203,0.00038896,2]
[354905302,1740809442336,-500.0,0.00038896,2]
[354905303,1740809442346,-771.96,0.00038896,2]
[354905304,1740809442356,-231.467165,0.00038896,14]
[354905305,1740809442366,-231.467165,0.00038896,14]
[354905306,1740809442375,-500.0,0.00038896,2]
[354905307,1740809442385,-500.0,0.00038896,2]
[354905308,1740809442394,-1348.6,0.00038896,2]
[354905309,1740809442404,-500.0,0.00038896,2]
[354905310,1740809442415,-7402.16,0.00038896,2]
[354905311,1740809442425,-44165.87,0.00038896,2]
[354905312,1740809442436,-500.0,0.00038896,2]
[354905313,1740809442445,-231.467165,0.00038896,14]
[354905314,1740809442455,-1052.6,0.00038896,2]
[354905315,1740809442464,-231.467165,0.00038896,14]
[354905316,1740809442473,-500.0,0.00038896,2]
[354905317,1740809442482,-1650.97,0.00038896,2]
[354905318,1740809442498,-878.48,0.00038896,2]
[354905319,1740809442507,-500.0,0.00038896,2]
[354905320,1740809442517,-1880.54,0.00038896,2]
[354905321,1740809442527,-2500.008198,0.00038896,14]
[354905322,1740809442537,-157.91491,0.00038896,14]
[354905323,1740809442546,-2500.008198,0.00038896,14]
[354905324,1740809442556,-1940.86,0.00038896,2]
[354905325,1740809442565,-500.0,0.00038896,2]
[354905326,1740809442575,-1651.09,0.00038896,2]
[354905327,1740809442584,-2500.008198,0.00038896,14]
[354905328,1740809442593,-2500.008198,0.00038896,14]
[354905329,1740809442602,-500.0,0.00038896,2]
[354905330,1740809442611,-2238.63,0.00038896,2]
[354905331,1740809442621,-500.0,0.00038896,2]
[354905332,1740809442631,-500.0,0.00038896,2]
[354905333,1740809442640,-2998.68,0.00038896,2]
[354905334,1740809442650,-500.0,0.00038896,2]
[354905335,1740809442659,-3101.73,0.00038896,2]
[354905336,1740809442669,-245.78100725,0.00038896,2]
[354905337,1740809442678,-500.0,0.00038896,2]